{"text_format":"2","workbook":"xlsx","n_sheets":1,"sheets":["Plan1"],"not_rendered":{"charts":0,"images":1,"macros":0,"external_links":0,"defined_names":1,"comments":0,"pivot_tables":0},"unopened":[],"bounds":{"document_bytes":16777216,"sheet_cells":100000,"run_cost":"one","rows_first":2000,"rows_last":500,"rows_between":2000,"halvings":0,"cell_chars":16384,"cell_head_chars":4096},"cells_cut":0,"cells_raw":0,"read":"whole","date_system":"1900"}

{"sheet":"Plan1","index":0,"n_rows":20,"n_cols":9,"rows_kept":20,"cut":false,"hidden":false,"merged":[[0,0,3,4],[18,0,18,4],[19,0,19,4],[14,0,14,4],[4,0,4,4],[13,0,13,4],[15,0,15,4],[16,0,16,4],[17,0,17,4]]}
[]
[]
[]
[]
["PLANILHA DE ORÇAMENTO DE UNIFORMES PARA CADA EMPREGADO – MOTORISTA"]
["Descrição","Preço médio praticado no mercado por unidade (R$)","Qtde de uniformes fornecidos em 12 meses por empregado","Custo anual do uniforme por empregado","Custo mensal do uniforme por empregado","Cotação I","Cotação II","Cotação (compras.gov.br)\nMédia/Mediana","Total"]
["Calça social tipo esporte fino com ziper, em algodão.",{"$f":"I7/3","v":141.33333333333334},4,{"$f":"B7*C7","v":565.33333333333337},{"$f":"D7/12","v":47.111111111111114},220,115,89,{"$f":"F7+G7+H7","v":424}]
["Camisa social manga curta em algodão e emblema da empresa pintado no lado esquerdo superior, mangas curtas, de boa qualidade.",{"$f":"I8/3","v":132.16333333333333},4,{"$f":"B8*C8","v":528.65333333333331},{"$f":"D8/12","v":44.054444444444442},220,118,58.49,{"$f":"F8+G8+H8","v":396.49}]
["Cinto de couro constituído de 1 (uma) face na cor preta sem costura, fivela em metal, com garra regulável, de boa qualidade.",{"$f":"I9/3","v":36.333333333333336},2,{"$f":"B9*C9","v":72.666666666666671},{"$f":"D9/12","v":6.0555555555555562},0,29,80,{"$f":"F9+G9+H9","v":109}]
["Par de calçado: sapato social preto em couro, solado baixo, com palmilha antibacteriana, de boa qualidade.",{"$f":"I10/3","v":71.333333333333329},2,{"$f":"B10*C10","v":142.66666666666666},{"$f":"D10/12","v":11.888888888888888},0,99,115,{"$f":"F10+G10+H10","v":214}]
["Par de meia em algodão, tipo cano médio, cor preta, de boa qualidade. Marca Trifill, Lupo ou similar.",{"$f":"I11/3","v":9.99},8,{"$f":"B11*C11","v":79.92},{"$f":"D11/12","v":6.66},0,18,11.97,{"$f":"F11+G11+H11","v":29.97}]
["TOTAL",{"$f":"SUM(B7:B11)","v":391.15333333333331},"-",{"$f":"SUM(D7:D11)","v":1389.2400000000002},{"$f":"SUM(E7:E11)","v":115.77}]
[]
["1 - O conjunto de uniforme deverá ser entregue dentro do prazo de 10 (dez) dias, a contar do início da prestação dos serviços, nas condições determinadas pela FISCALIZAÇÃO."]
["2 - Todos os uniformes estarão sujeitos à prévia aprovação da CONTRATANTE e, a pedido dela, poderão ser substituídos, caso não correspondam às especificações necessárias e adequadas à execução dos serviços."]
["3 - Poderão ocorrer eventuais alterações nas especificações dos uniformes, quanto ao tecido, à cor, ao modelo, desde que previamente aceitas pela Administração."]
["4 - Os uniformes deverão ser entregues aos empregados, mediante recibo (relação nominal), cuja cópia deverá ser entregue à CONTRATANTE, sempre que solicitado pela FISCALIZAÇÃO."]
["5 - O custo do uniforme não poderá ser repassado ao ocupante do posto de trabalho."]
["6 - A CONTRATADA não poderá exigir do empregado o uniforme usado, quando da entrega dos novos."]
["7 - Sempre que houver renovação ou prorrogação do contrato, a CONTRATADA deverá fornecer novos uniformes."]